[Event "Titled Tuesday Blitz June 20 Early 2023"]
[White "zano2023"]
[Black "Dwilewicz, Katarzyna"]
[BlackFideId "1148486"]
[WhiteElo "2176"]
[BlackElo "2098"]
[Result "1-0"]
[Round "11"]
[TimeControl "180+2"]
[Date "2023.06.20"]
[WhiteClock "0:00:10"]
[BlackClock "0:00:00"]
[Board "136"]

1. d4 {[%clk 0:03:00]}  d5 {[%clk 0:02:59]} 2. Nf3 {[%clk 0:02:59]}  e6 {[%clk 0:02:58]} 3. Nbd2 {[%clk 0:02:59]}  b6 {[%clk 0:02:55]} 4. e3 {[%clk 0:02:59]}  Bb7 {[%clk 0:02:55]} 5. Bd3 {[%clk 0:02:59]}  Nd7 {[%clk 0:02:55]} 6. O-O {[%clk 0:02:53]}  Ngf6 {[%clk 0:02:55]} 7. Qe2 {[%clk 0:02:53]}  c5 {[%clk 0:02:52]} 8. c3 {[%clk 0:02:53]}  Be7 {[%clk 0:02:49]} 9. Re1 {[%clk 0:02:51]}  O-O {[%clk 0:02:48]} 10. b3 {[%clk 0:02:47]}  Rc8 {[%clk 0:02:47]} 11. Bb2 {[%clk 0:02:47]}  Re8 {[%clk 0:02:47]} 12. Rac1 {[%clk 0:02:46]}  Bd6 {[%clk 0:02:40]} 13. e4 {[%clk 0:02:44]}  e5 {[%clk 0:02:37]} 14. dxe5 {[%clk 0:02:40]}  Nxe5 {[%clk 0:02:36]} 15. Nxe5 {[%clk 0:02:39]}  Bxe5 {[%clk 0:02:36]} 16. Bb5 {[%clk 0:02:34]}  Re6 {[%clk 0:02:31]} 17. Ba6 {[%clk 0:02:06]}  Bxa6 {[%clk 0:02:29]} 18. Qxa6 {[%clk 0:02:06]}  Rcc6 {[%clk 0:02:14]} 19. exd5 {[%clk 0:02:01]}  Nxd5 {[%clk 0:01:59]} 20. Nf3 {[%clk 0:01:58]}  Bf4 {[%clk 0:01:43]} 21. Rxe6 {[%clk 0:01:47]}  Rxe6 {[%clk 0:01:43]} 22. Rd1 {[%clk 0:01:46]}  Rd6 {[%clk 0:01:28]} 23. Qc4 {[%clk 0:01:30]}  Bh6 {[%clk 0:00:35]} 24. h3 {[%clk 0:01:15]}  Ne7 {[%clk 0:00:33]} 25. Rxd6 {[%clk 0:01:12]}  Qxd6 {[%clk 0:00:34]} 26. Qe2 {[%clk 0:01:12]}  Nc6 {[%clk 0:00:27]} 27. Qe8+ {[%clk 0:01:10]}  Qf8 {[%clk 0:00:27]} 28. Qxc6 {[%clk 0:01:10]}  Bf4 {[%clk 0:00:25]} 29. c4 {[%clk 0:01:09]}  h6 {[%clk 0:00:24]} 30. Qe4 {[%clk 0:01:07]}  Bc7 {[%clk 0:00:21]} 31. Qd5 {[%clk 0:00:58]}  Qe7 {[%clk 0:00:20]} 32. Be5 {[%clk 0:00:58]}  Bd8 {[%clk 0:00:17]} 33. Kf1 {[%clk 0:00:56]}  Kh7 {[%clk 0:00:15]} 34. Qe4+ {[%clk 0:00:55]}  g6 {[%clk 0:00:15]} 35. Qd5 {[%clk 0:00:55]}  f6 {[%clk 0:00:14]} 36. Bd6 {[%clk 0:00:50]}  Qd7 {[%clk 0:00:12]} 37. Bf4 {[%clk 0:00:43]}  Qe8 {[%clk 0:00:10]} 38. Qb7+ {[%clk 0:00:41]}  Kg8 {[%clk 0:00:10]} 39. Qd5+ {[%clk 0:00:40]}  Kh7 {[%clk 0:00:09]} 40. Qb7+ {[%clk 0:00:35]}  Kg8 {[%clk 0:00:09]} 41. Qxa7 {[%clk 0:00:34]}  Be7 {[%clk 0:00:10]} 42. Qxb6 {[%clk 0:00:30]}  Qd7 {[%clk 0:00:10]} 43. g3 {[%clk 0:00:26]}  Qxh3+ {[%clk 0:00:05]} 44. Ke2 {[%clk 0:00:24]}  Qd7 {[%clk 0:00:04]} 45. Qb8+ {[%clk 0:00:21]}  Kf7 {[%clk 0:00:04]} 46. Qb5 {[%clk 0:00:21]}  Qg4 {[%clk 0:00:04]} 47. Be3 {[%clk 0:00:20]}  g5 {[%clk 0:00:03]} 48. Qc6 {[%clk 0:00:20]}  h5 {[%clk 0:00:02]} 49. Qd5+ {[%clk 0:00:20]}  Kg7 {[%clk 0:00:02]} 50. a3 {[%clk 0:00:18]}  h4 {[%clk 0:00:02]} 51. gxh4 {[%clk 0:00:18]}  gxh4 {[%clk 0:00:03]} 52. Qd3 {[%clk 0:00:16]}  h3 {[%clk 0:00:03]} 53. Qd1 {[%clk 0:00:16]}  h2 {[%clk 0:00:03]} 54. Qh1 {[%clk 0:00:17]}  Qh5 {[%clk 0:00:04]} 55. Qxh2 {[%clk 0:00:17]}  Qf5 {[%clk 0:00:04]} 56. Qg3+ {[%clk 0:00:17]}  Kf7 {[%clk 0:00:05]} 57. Nd2 {[%clk 0:00:17]}  Qc2 {[%clk 0:00:05]} 58. Qf3 {[%clk 0:00:17]}  Bd6 {[%clk 0:00:05]} 59. Qe4 {[%clk 0:00:17]}  Be5 {[%clk 0:00:05]} 60. f4 {[%clk 0:00:17]}  Qc1 {[%clk 0:00:03]} 61. fxe5 {[%clk 0:00:14]}  Qxa3 {[%clk 0:00:02]} 62. e6+ {[%clk 0:00:13]}  Ke7 {[%clk 0:00:03]} 63. Qd5 {[%clk 0:00:10]}  Qb2 {[%clk 0:00:00]} 64. Bxc5+ {[%clk 0:00:10]} 1-0


[Site "https://www.chess.com"]

[Event "Titled Tuesday Blitz June 20 Early 2023"]
[White "Vaglio Munoz, Jaime"]
[Black "Vargas Rodriguez, Wilver"]
[WhiteFideId "6500145"]
[BlackFideId "3509672"]
[WhiteElo "2199"]
[BlackElo "2245"]
[Result "1-0"]
[Round "11"]
[TimeControl "180+2"]
[Date "2023.06.20"]
[WhiteClock "0:02:06"]
[BlackClock "0:00:18"]
[Board "137"]

1. e4 {[%clk 0:02:56]}  c5 {[%clk 0:02:59]} 2. a3 {[%clk 0:02:54]}  e6 {[%clk 0:02:54]} 3. b4 {[%clk 0:02:54]}  cxb4 {[%clk 0:02:54]} 4. axb4 {[%clk 0:02:54]}  Bxb4 {[%clk 0:02:54]} 5. c3 {[%clk 0:02:55]}  Be7 {[%clk 0:02:44]} 6. d4 {[%clk 0:02:55]}  d5 {[%clk 0:02:45]} 7. e5 {[%clk 0:02:56]}  f6 {[%clk 0:02:41]} 8. Bd3 {[%clk 0:02:55]}  f5 {[%clk 0:02:34]} 9. g4 {[%clk 0:02:54]}  Nh6 {[%clk 0:02:30]} 10. Bxh6 {[%clk 0:02:53]}  gxh6 {[%clk 0:02:31]} 11. gxf5 {[%clk 0:02:53]}  exf5 {[%clk 0:02:27]} 12. Qh5+ {[%clk 0:02:52]}  Kf8 {[%clk 0:02:22]} 13. Qxh6+ {[%clk 0:02:52]}  Ke8 {[%clk 0:02:19]} 14. Nf3 {[%clk 0:02:51]}  Nc6 {[%clk 0:02:01]} 15. Rg1 {[%clk 0:02:50]}  Qb6 {[%clk 0:01:44]} 16. Nbd2 {[%clk 0:02:44]}  Nxe5 {[%clk 0:01:23]} 17. Qh5+ {[%clk 0:02:41]}  Ng6 {[%clk 0:01:18]} 18. Ne5 {[%clk 0:02:39]}  Qf6 {[%clk 0:00:52]} 19. Nxg6 {[%clk 0:02:36]}  hxg6 {[%clk 0:00:51]} 20. Qxg6+ {[%clk 0:02:33]}  Qxg6 {[%clk 0:00:49]} 21. Rxg6 {[%clk 0:02:34]}  Rxh2 {[%clk 0:00:49]} 22. Nf3 {[%clk 0:02:32]}  Rh1+ {[%clk 0:00:48]} 23. Bf1 {[%clk 0:02:26]}  f4 {[%clk 0:00:38]} 24. O-O-O {[%clk 0:02:21]}  Ba3+ {[%clk 0:00:32]} 25. Kd2 {[%clk 0:02:19]}  Bf5 {[%clk 0:00:31]} 26. Rg8+ {[%clk 0:02:17]}  Bf8 {[%clk 0:00:31]} 27. Bb5+ {[%clk 0:02:14]}  Kf7 {[%clk 0:00:30]} 28. Rxf8+ {[%clk 0:02:14]}  Rxf8 {[%clk 0:00:29]} 29. Rxh1 {[%clk 0:02:15]}  Be4 {[%clk 0:00:29]} 30. Ng5+ {[%clk 0:02:12]}  Kg6 {[%clk 0:00:28]} 31. Nxe4 {[%clk 0:02:12]}  dxe4 {[%clk 0:00:29]} 32. Re1 {[%clk 0:02:10]}  e3+ {[%clk 0:00:24]} 33. fxe3 {[%clk 0:02:09]}  fxe3+ {[%clk 0:00:25]} 34. Rxe3 {[%clk 0:02:09]}  a6 {[%clk 0:00:26]} 35. Bd3+ {[%clk 0:02:08]}  Kf6 {[%clk 0:00:25]} 36. c4 {[%clk 0:02:07]}  Rh8 {[%clk 0:00:24]} 37. d5 {[%clk 0:02:07]}  b5 {[%clk 0:00:18]} 38. c5 {[%clk 0:02:06]} 1-0


[Site "https://www.chess.com"]

[Event "Titled Tuesday Blitz June 20 Early 2023"]
[White "Vifleemskaia, Svetlana"]
[Black "Nikulina, Alena"]
[WhiteFideId "4129490"]
[BlackFideId "4172051"]
[WhiteElo "1930"]
[BlackElo "1608"]
[Result "1/2-1/2"]
[Round "11"]
[TimeControl "180+2"]
[Date "2023.06.20"]
[WhiteClock "0:00:10"]
[BlackClock "0:00:15"]
[Board "138"]

1. d4 {[%clk 0:02:54]}  d5 {[%clk 0:02:59]} 2. c4 {[%clk 0:02:53]}  dxc4 {[%clk 0:03:00]} 3. Nf3 {[%clk 0:02:52]}  Nf6 {[%clk 0:02:59]} 4. e3 {[%clk 0:02:52]}  a6 {[%clk 0:02:59]} 5. Bxc4 {[%clk 0:02:52]}  e6 {[%clk 0:02:59]} 6. O-O {[%clk 0:02:51]}  b5 {[%clk 0:02:59]} 7. Bb3 {[%clk 0:02:52]}  Bb7 {[%clk 0:02:56]} 8. Qe2 {[%clk 0:02:52]}  Nbd7 {[%clk 0:02:56]} 9. a4 {[%clk 0:02:50]}  b4 {[%clk 0:02:54]} 10. Rd1 {[%clk 0:02:50]}  Be7 {[%clk 0:02:42]} 11. Ne5 {[%clk 0:02:47]}  O-O {[%clk 0:02:33]} 12. Nd2 {[%clk 0:02:47]}  c5 {[%clk 0:02:22]} 13. Ndc4 {[%clk 0:02:40]}  cxd4 {[%clk 0:02:12]} 14. Rxd4 {[%clk 0:02:35]}  Bc5 {[%clk 0:02:04]} 15. Rd1 {[%clk 0:02:29]}  Qc7 {[%clk 0:02:00]} 16. Nxd7 {[%clk 0:02:28]}  Nxd7 {[%clk 0:01:59]} 17. e4 {[%clk 0:02:28]}  Rac8 {[%clk 0:01:45]} 18. Bg5 {[%clk 0:02:16]}  h6 {[%clk 0:01:35]} 19. Bh4 {[%clk 0:02:08]}  Nb6 {[%clk 0:01:22]} 20. Rac1 {[%clk 0:02:06]}  Nxc4 {[%clk 0:01:21]} 21. Rxc4 {[%clk 0:02:02]}  Qb6 {[%clk 0:01:22]} 22. Rdc1 {[%clk 0:01:57]}  e5 {[%clk 0:01:12]} 23. Bg3 {[%clk 0:01:52]}  Bd4 {[%clk 0:01:12]} 24. h3 {[%clk 0:01:42]}  Qg6 {[%clk 0:00:59]} 25. Kh2 {[%clk 0:01:33]}  Rxc4 {[%clk 0:00:46]} 26. Bxc4 {[%clk 0:01:29]}  Qxe4 {[%clk 0:00:37]} 27. Qxe4 {[%clk 0:01:27]}  Bxe4 {[%clk 0:00:38]} 28. Bxa6 {[%clk 0:01:24]}  Bxb2 {[%clk 0:00:38]} 29. Rc4 {[%clk 0:01:22]}  Bd3 {[%clk 0:00:36]} 30. Rxb4 {[%clk 0:01:22]}  Bxa6 {[%clk 0:00:32]} 31. Rxb2 {[%clk 0:01:20]}  e4 {[%clk 0:00:28]} 32. Rb6 {[%clk 0:01:14]}  Bd3 {[%clk 0:00:28]} 33. Rb4 {[%clk 0:01:10]}  Ra8 {[%clk 0:00:27]} 34. Rd4 {[%clk 0:01:08]}  Kh7 {[%clk 0:00:26]} 35. Bc7 {[%clk 0:01:06]}  Kg6 {[%clk 0:00:26]} 36. a5 {[%clk 0:01:05]}  f5 {[%clk 0:00:27]} 37. Kg3 {[%clk 0:01:04]}  Kf6 {[%clk 0:00:26]} 38. Bb6 {[%clk 0:00:59]}  g5 {[%clk 0:00:26]} 39. f4 {[%clk 0:00:53]}  Ra6 {[%clk 0:00:18]} 40. Rd6+ {[%clk 0:00:49]}  Kf7 {[%clk 0:00:18]} 41. Rxh6 {[%clk 0:00:49]}  gxf4+ {[%clk 0:00:17]} 42. Kxf4 {[%clk 0:00:48]}  Ra8 {[%clk 0:00:17]} 43. g4 {[%clk 0:00:38]}  fxg4 {[%clk 0:00:17]} 44. hxg4 {[%clk 0:00:39]}  Kg7 {[%clk 0:00:17]} 45. g5 {[%clk 0:00:31]}  Bc2 {[%clk 0:00:16]} 46. Rf6 {[%clk 0:00:24]}  Bd3 {[%clk 0:00:17]} 47. Ke3 {[%clk 0:00:23]}  Kh7 {[%clk 0:00:16]} 48. Re6 {[%clk 0:00:20]}  Kg7 {[%clk 0:00:16]} 49. Bd4+ {[%clk 0:00:18]}  Kf7 {[%clk 0:00:16]} 50. Rf6+ {[%clk 0:00:17]}  Ke7 {[%clk 0:00:17]} 51. a6 {[%clk 0:00:11]}  Rxa6 {[%clk 0:00:15]} 52. Rxa6 {[%clk 0:00:11]}  Bxa6 {[%clk 0:00:15]} 53. Kxe4 {[%clk 0:00:11]}  Kf8 {[%clk 0:00:15]} 54. Kf5 {[%clk 0:00:11]}  Kg8 {[%clk 0:00:16]} 55. Kf6 {[%clk 0:00:12]}  Bc4 {[%clk 0:00:15]} 56. g6 {[%clk 0:00:10]} 1/2-1/2


[Site "https://www.chess.com"]

[Event "Titled Tuesday Blitz June 20 Early 2023"]
[White "Goughfather"]
[Black "Martin, Lewis"]
[BlackFideId "410551"]
[WhiteElo "2029"]
[BlackElo "2145"]
[Result "0-1"]
[Round "11"]
[TimeControl "180+2"]
[Date "2023.06.20"]
[WhiteClock "0:00:00"]
[BlackClock "0:00:07"]
[Board "139"]

1. d4 {[%clk 0:03:00]}  d5 {[%clk 0:02:59]} 2. Nc3 {[%clk 0:03:00]}  Nf6 {[%clk 0:02:54]} 3. Bf4 {[%clk 0:03:00]}  c6 {[%clk 0:02:53]} 4. e3 {[%clk 0:02:58]}  Nbd7 {[%clk 0:02:52]} 5. Nf3 {[%clk 0:02:48]}  Nh5 {[%clk 0:02:48]} 6. Bg5 {[%clk 0:02:48]}  h6 {[%clk 0:02:46]} 7. Bh4 {[%clk 0:02:43]}  g5 {[%clk 0:02:47]} 8. Ne5 {[%clk 0:02:42]}  Nxe5 {[%clk 0:02:36]} 9. dxe5 {[%clk 0:02:35]}  Ng7 {[%clk 0:02:33]} 10. Bg3 {[%clk 0:02:34]}  Nf5 {[%clk 0:02:32]} 11. Bd3 {[%clk 0:01:58]}  Bg7 {[%clk 0:02:21]} 12. Bxf5 {[%clk 0:01:45]}  Bxf5 {[%clk 0:02:20]} 13. Qd2 {[%clk 0:01:33]}  e6 {[%clk 0:02:18]} 14. O-O-O {[%clk 0:01:24]}  Qc7 {[%clk 0:02:16]} 15. f4 {[%clk 0:01:23]}  O-O-O {[%clk 0:02:15]} 16. Qd4 {[%clk 0:01:15]}  c5 {[%clk 0:02:10]} 17. Qa4 {[%clk 0:01:15]}  a6 {[%clk 0:02:10]} 18. e4 {[%clk 0:01:08]}  dxe4 {[%clk 0:01:56]} 19. Nxe4 {[%clk 0:01:07]}  Bxe4 {[%clk 0:01:35]} 20. Qxe4 {[%clk 0:01:04]}  Rxd1+ {[%clk 0:01:27]} 21. Rxd1 {[%clk 0:01:03]}  Rd8 {[%clk 0:01:28]} 22. Rxd8+ {[%clk 0:00:54]}  Qxd8 {[%clk 0:01:27]} 23. f5 {[%clk 0:00:53]}  exf5 {[%clk 0:01:22]} 24. Qxf5+ {[%clk 0:00:42]}  Qd7 {[%clk 0:01:22]} 25. e6 {[%clk 0:00:36]}  fxe6 {[%clk 0:01:10]} 26. Qxc5+ {[%clk 0:00:35]}  Kd8 {[%clk 0:01:07]} 27. Qd6 {[%clk 0:00:29]}  Qxd6 {[%clk 0:01:02]} 28. Bxd6 {[%clk 0:00:30]}  Kd7 {[%clk 0:01:03]} 29. Bb4 {[%clk 0:00:29]}  b5 {[%clk 0:00:56]} 30. b3 {[%clk 0:00:28]}  Be5 {[%clk 0:00:51]} 31. h3 {[%clk 0:00:27]}  h5 {[%clk 0:00:51]} 32. g4 {[%clk 0:00:25]}  hxg4 {[%clk 0:00:47]} 33. hxg4 {[%clk 0:00:26]}  Bf4+ {[%clk 0:00:42]} 34. Kd1 {[%clk 0:00:18]}  e5 {[%clk 0:00:38]} 35. Ke2 {[%clk 0:00:17]}  Ke6 {[%clk 0:00:37]} 36. c4 {[%clk 0:00:13]}  bxc4 {[%clk 0:00:36]} 37. bxc4 {[%clk 0:00:14]}  e4 {[%clk 0:00:37]} 38. Bc3 {[%clk 0:00:13]}  Kd6 {[%clk 0:00:34]} 39. Bd4 {[%clk 0:00:13]}  Kc6 {[%clk 0:00:34]} 40. a4 {[%clk 0:00:12]}  Kd6 {[%clk 0:00:26]} 41. Bf2 {[%clk 0:00:10]}  Ke5 {[%clk 0:00:22]} 42. Ba7 {[%clk 0:00:09]}  Bc1 {[%clk 0:00:20]} 43. Be3 {[%clk 0:00:05]}  Ba3 {[%clk 0:00:19]} 44. Bxg5 {[%clk 0:00:05]}  Kd4 {[%clk 0:00:19]} 45. c5 {[%clk 0:00:04]}  Kc4 {[%clk 0:00:10]} 46. Be3 {[%clk 0:00:02]}  Kb3 {[%clk 0:00:08]} 47. Bd4 {[%clk 0:00:01]}  Kxa4 {[%clk 0:00:08]} 48. g5 {[%clk 0:00:00]}  Bc1 {[%clk 0:00:07]} 0-1


[Site "https://www.chess.com"]

[Event "Titled Tuesday Blitz June 20 Early 2023"]
[White "Ouellet, Maili-Jade"]
[Black "Semenova, Alina"]
[WhiteFideId "2620472"]
[BlackFideId "24113875"]
[WhiteElo "2077"]
[BlackElo "1833"]
[Result "1-0"]
[Round "11"]
[TimeControl "180+2"]
[Date "2023.06.20"]
[WhiteClock "0:01:24"]
[BlackClock "0:00:52"]
[Board "140"]

1. e4 {[%clk 0:03:00]}  e5 {[%clk 0:02:58]} 2. Nf3 {[%clk 0:03:00]}  Nf6 {[%clk 0:02:57]} 3. Nxe5 {[%clk 0:02:58]}  Nxe4 {[%clk 0:02:56]} 4. d4 {[%clk 0:02:50]}  d5 {[%clk 0:02:53]} 5. Bd3 {[%clk 0:02:49]}  Nd7 {[%clk 0:02:53]} 6. Nc3 {[%clk 0:02:41]}  Nxc3 {[%clk 0:02:50]} 7. bxc3 {[%clk 0:02:40]}  Nxe5 {[%clk 0:02:50]} 8. dxe5 {[%clk 0:02:41]}  Bc5 {[%clk 0:02:50]} 9. O-O {[%clk 0:02:39]}  O-O {[%clk 0:02:49]} 10. Qf3 {[%clk 0:02:33]}  c6 {[%clk 0:02:46]} 11. a4 {[%clk 0:02:26]}  Qh4 {[%clk 0:02:37]} 12. a5 {[%clk 0:02:17]}  a6 {[%clk 0:02:33]} 13. Re1 {[%clk 0:02:05]}  Bg4 {[%clk 0:02:31]} 14. Ra4 {[%clk 0:02:01]}  Bxf3 {[%clk 0:01:35]} 15. Rxh4 {[%clk 0:01:59]}  Be7 {[%clk 0:01:35]} 16. Rxh7 {[%clk 0:01:44]}  g6 {[%clk 0:01:19]} 17. Bxg6 {[%clk 0:01:39]}  Bg4 {[%clk 0:00:59]} 18. Bd3 {[%clk 0:01:26]}  f5 {[%clk 0:00:52]} 19. Rxe7 {[%clk 0:01:24]} 1-0


[Site "https://www.chess.com"]

[Event "Titled Tuesday Blitz June 20 Early 2023"]
[White "Freile Martin, Javier"]
[Black "luachess1"]
[WhiteFideId "3600165"]
[WhiteElo "2320"]
[BlackElo "1704"]
[Result "1-0"]
[Round "11"]
[TimeControl "180+2"]
[Date "2023.06.20"]
[WhiteClock "0:01:18"]
[BlackClock "0:00:13"]
[Board "143"]

1. d4 {[%clk 0:03:00]}  Nf6 {[%clk 0:02:59]} 2. c4 {[%clk 0:03:00]}  g6 {[%clk 0:02:57]} 3. Nc3 {[%clk 0:02:59]}  Bg7 {[%clk 0:02:57]} 4. e4 {[%clk 0:02:58]}  d6 {[%clk 0:02:57]} 5. Be2 {[%clk 0:02:58]}  O-O {[%clk 0:02:57]} 6. Nf3 {[%clk 0:02:58]}  e5 {[%clk 0:02:58]} 7. O-O {[%clk 0:02:56]}  Nbd7 {[%clk 0:02:56]} 8. Be3 {[%clk 0:02:52]}  a5 {[%clk 0:02:55]} 9. d5 {[%clk 0:02:51]}  Ng4 {[%clk 0:02:55]} 10. Bg5 {[%clk 0:02:46]}  Qe8 {[%clk 0:02:48]} 11. Ne1 {[%clk 0:02:43]}  Ngf6 {[%clk 0:02:45]} 12. Nd3 {[%clk 0:02:16]}  h6 {[%clk 0:02:29]} 13. Be3 {[%clk 0:02:15]}  b6 {[%clk 0:02:22]} 14. a3 {[%clk 0:02:14]}  Nc5 {[%clk 0:02:18]} 15. f3 {[%clk 0:02:12]}  Nfd7 {[%clk 0:02:14]} 16. b4 {[%clk 0:02:10]}  axb4 {[%clk 0:02:14]} 17. axb4 {[%clk 0:02:10]}  Rxa1 {[%clk 0:02:14]} 18. Qxa1 {[%clk 0:02:09]}  Nb3 {[%clk 0:02:07]} 19. Qa7 {[%clk 0:02:07]}  Qd8 {[%clk 0:01:15]} 20. Nb5 {[%clk 0:02:05]}  Nd4 {[%clk 0:01:14]} 21. Bxd4 {[%clk 0:02:05]}  exd4 {[%clk 0:01:14]} 22. Qxc7 {[%clk 0:02:03]}  Qxc7 {[%clk 0:01:12]} 23. Nxc7 {[%clk 0:02:03]}  Ne5 {[%clk 0:01:02]} 24. Nxe5 {[%clk 0:02:01]}  dxe5 {[%clk 0:01:03]} 25. c5 {[%clk 0:01:57]}  bxc5 {[%clk 0:00:58]} 26. bxc5 {[%clk 0:01:56]}  Rd8 {[%clk 0:00:55]} 27. d6 {[%clk 0:01:56]}  Bd7 {[%clk 0:00:52]} 28. Ra1 {[%clk 0:01:49]}  Kf8 {[%clk 0:00:41]} 29. Ra8 {[%clk 0:01:46]}  Rxa8 {[%clk 0:00:40]} 30. Nxa8 {[%clk 0:01:46]}  Bc6 {[%clk 0:00:39]} 31. Nb6 {[%clk 0:01:45]}  Ke8 {[%clk 0:00:39]} 32. Bc4 {[%clk 0:01:37]}  f5 {[%clk 0:00:35]} 33. Bd5 {[%clk 0:01:35]}  Bd7 {[%clk 0:00:32]} 34. c6 {[%clk 0:01:35]}  Bxc6 {[%clk 0:00:31]} 35. Bxc6+ {[%clk 0:01:34]}  Kd8 {[%clk 0:00:31]} 36. Kf1 {[%clk 0:01:29]}  Bf8 {[%clk 0:00:27]} 37. Nc4 {[%clk 0:01:26]}  Bg7 {[%clk 0:00:25]} 38. Ke2 {[%clk 0:01:26]}  fxe4 {[%clk 0:00:19]} 39. fxe4 {[%clk 0:01:25]}  Bf6 {[%clk 0:00:18]} 40. h3 {[%clk 0:01:23]}  g5 {[%clk 0:00:18]} 41. g4 {[%clk 0:01:22]}  Bg7 {[%clk 0:00:17]} 42. Kd3 {[%clk 0:01:21]}  Bf6 {[%clk 0:00:18]} 43. Nb2 {[%clk 0:01:17]}  Bg7 {[%clk 0:00:17]} 44. Kc4 {[%clk 0:01:17]}  Bf6 {[%clk 0:00:17]} 45. Kd5 {[%clk 0:01:18]}  Bg7 {[%clk 0:00:13]} 46. Nd3 {[%clk 0:01:18]} 1-0


[Site "https://www.chess.com"]

[Event "Titled Tuesday Blitz June 20 Early 2023"]
[White "Lohani, Sujana"]
[Black "Vargas, Mauricio"]
[WhiteFideId "12311987"]
[BlackFideId "4404572"]
[WhiteElo "1718"]
[BlackElo "1986"]
[Result "1-0"]
[Round "11"]
[TimeControl "180+2"]
[Date "2023.06.20"]
[WhiteClock "0:00:52"]
[BlackClock "0:00:00"]
[Board "150"]

1. d4 {[%clk 0:02:47]}  d5 {[%clk 0:02:40]} 2. Nf3 {[%clk 0:02:48]}  c6 {[%clk 0:02:36]} 3. c4 {[%clk 0:02:49]}  e6 {[%clk 0:02:36]} 4. e3 {[%clk 0:02:46]}  Nf6 {[%clk 0:02:37]} 5. Nc3 {[%clk 0:02:46]}  Nbd7 {[%clk 0:02:37]} 6. Bd3 {[%clk 0:02:46]}  Bd6 {[%clk 0:02:37]} 7. O-O {[%clk 0:02:46]}  O-O {[%clk 0:02:37]} 8. e4 {[%clk 0:02:45]}  dxe4 {[%clk 0:02:35]} 9. Nxe4 {[%clk 0:02:45]}  Bc7 {[%clk 0:02:35]} 10. Re1 {[%clk 0:02:43]}  Re8 {[%clk 0:02:34]} 11. Bg5 {[%clk 0:02:41]}  h6 {[%clk 0:02:32]} 12. Bh4 {[%clk 0:02:38]}  b6 {[%clk 0:02:26]} 13. Qe2 {[%clk 0:02:35]}  Bb7 {[%clk 0:02:25]} 14. Rad1 {[%clk 0:02:27]}  Rc8 {[%clk 0:02:22]} 15. Bb1 {[%clk 0:02:21]}  Bb8 {[%clk 0:02:21]} 16. Qd3 {[%clk 0:02:18]}  g5 {[%clk 0:02:08]} 17. Nfxg5 {[%clk 0:02:09]}  hxg5 {[%clk 0:02:07]} 18. Bxg5 {[%clk 0:02:09]}  Kg7 {[%clk 0:02:04]} 19. Qg3 {[%clk 0:02:05]}  Bxg3 {[%clk 0:01:58]} 20. hxg3 {[%clk 0:02:00]}  c5 {[%clk 0:01:53]} 21. Nd6 {[%clk 0:01:59]}  Qc7 {[%clk 0:01:48]} 22. dxc5 {[%clk 0:01:57]}  Nxc5 {[%clk 0:01:45]} 23. Rd4 {[%clk 0:01:47]}  e5 {[%clk 0:01:33]} 24. Nxe8+ {[%clk 0:01:45]}  Rxe8 {[%clk 0:01:30]} 25. Rh4 {[%clk 0:01:44]}  Qc6 {[%clk 0:01:25]} 26. f3 {[%clk 0:01:40]}  Rh8 {[%clk 0:01:05]} 27. Rxe5 {[%clk 0:01:22]}  Rxh4 {[%clk 0:01:04]} 28. gxh4 {[%clk 0:01:21]}  Nfd7 {[%clk 0:00:59]} 29. Re7 {[%clk 0:01:20]}  Ba6 {[%clk 0:00:35]} 30. b3 {[%clk 0:01:19]}  Qd6 {[%clk 0:00:30]} 31. Bf5 {[%clk 0:01:13]}  Qd1+ {[%clk 0:00:23]} 32. Kh2 {[%clk 0:01:12]}  Qd6+ {[%clk 0:00:18]} 33. Kh3 {[%clk 0:01:10]}  Nf6 {[%clk 0:00:09]} 34. Rxa7 {[%clk 0:01:07]}  Bb7 {[%clk 0:00:08]} 35. h5 {[%clk 0:01:06]}  Nxh5 {[%clk 0:00:06]} 36. Kg4 {[%clk 0:00:55]}  Nf6+ {[%clk 0:00:00]} 37. Kh3 {[%clk 0:00:52]} 1-0